[Event "November 21 Early 2023"]
[Site "https://www.chess.com"]
[Date "2023.11.21"]
[Round "5"]
[White "Nakamura, Hikaru"]
[Black "Pranesh M"]
[Result "1-0"]
[Board "1"]
[TimeControl "180+1"]
[WhiteFideId "2016192"]
[BlackFideId "35028600"]
[WhiteElo "2874"]
[BlackElo "2481"]
[WhiteTeam "USA"]
[BlackTeam "IND"]
[WhiteClock "0:00:09"]
[BlackClock "0:00:04"]

1. h4 {[%clk 0:03:00]}  h6 {[%clk 0:02:56]} 2. e4 {[%clk 0:02:45]}  e5 {[%clk 0:02:54]} 3. Nf3 {[%clk 0:02:35]}  Nc6 {[%clk 0:02:54]} 4. Bc4 {[%clk 0:02:23]}  Nf6 {[%clk 0:02:53]} 5. d3 {[%clk 0:02:23]}  Bc5 {[%clk 0:02:52]} 6. Nc3 {[%clk 0:02:21]}  d6 {[%clk 0:02:50]} 7. Be3 {[%clk 0:02:21]}  Bg4 {[%clk 0:02:44]} 8. Bxc5 {[%clk 0:02:15]}  dxc5 {[%clk 0:02:45]} 9. Bb5 {[%clk 0:02:16]}  Nh5 {[%clk 0:02:35]} 10. Nd5 {[%clk 0:02:03]}  O-O {[%clk 0:02:31]} 11. Bxc6 {[%clk 0:02:01]}  bxc6 {[%clk 0:02:31]} 12. Ne3 {[%clk 0:02:02]}  Qc8 {[%clk 0:02:14]} 13. g3 {[%clk 0:01:41]}  Nf6 {[%clk 0:01:55]} 14. Nxg4 {[%clk 0:01:33]}  Nxg4 {[%clk 0:01:56]} 15. Qe2 {[%clk 0:01:33]}  c4 {[%clk 0:01:44]} 16. dxc4 {[%clk 0:01:33]}  f5 {[%clk 0:01:43]} 17. Nd2 {[%clk 0:01:33]}  f4 {[%clk 0:01:37]} 18. gxf4 {[%clk 0:01:27]}  Rxf4 {[%clk 0:01:25]} 19. f3 {[%clk 0:01:26]}  Nf6 {[%clk 0:01:26]} 20. O-O-O {[%clk 0:01:25]}  Qe6 {[%clk 0:01:22]} 21. Rdg1 {[%clk 0:01:19]}  Rf8 {[%clk 0:01:19]} 22. Qe3 {[%clk 0:01:16]}  a6 {[%clk 0:01:15]} 23. Qa3 {[%clk 0:01:10]}  Ra8 {[%clk 0:01:07]} 24. Qe3 {[%clk 0:01:08]}  Qe7 {[%clk 0:01:01]} 25. h5 {[%clk 0:00:55]}  Nh7 {[%clk 0:00:59]} 26. Rg6 {[%clk 0:00:55]}  Ng5 {[%clk 0:00:44]} 27. b3 {[%clk 0:00:50]}  Raf8 {[%clk 0:00:43]} 28. Kb2 {[%clk 0:00:47]}  Qd7 {[%clk 0:00:37]} 29. Rg1 {[%clk 0:00:43]}  Kh7 {[%clk 0:00:36]} 30. Qc3 {[%clk 0:00:37]}  R8f7 {[%clk 0:00:35]} 31. Rg2 {[%clk 0:00:33]}  Qh3 {[%clk 0:00:35]} 32. R2xg5 {[%clk 0:00:32]}  hxg5 {[%clk 0:00:36]} 33. Rxg5 {[%clk 0:00:33]}  Qh2 {[%clk 0:00:28]} 34. Nf1 {[%clk 0:00:20]}  Qf2 {[%clk 0:00:26]} 35. Ng3 {[%clk 0:00:15]}  Rxf3 {[%clk 0:00:22]} 36. Qxe5 {[%clk 0:00:15]}  Qd2 {[%clk 0:00:11]} 37. Rf5 {[%clk 0:00:12]}  Rf2 {[%clk 0:00:09]} 38. Qc3 {[%clk 0:00:03]}  Qxc3+ {[%clk 0:00:06]} 39. Kxc3 {[%clk 0:00:04]}  R7xf5 {[%clk 0:00:03]} 40. Nxf5 {[%clk 0:00:05]}  Rh2 {[%clk 0:00:03]} 41. Kd4 {[%clk 0:00:01]}  Rxh5 {[%clk 0:00:04]} 42. b4 {[%clk 0:00:02]}  g5 {[%clk 0:00:04]} 43. e5 {[%clk 0:00:02]}  g4 {[%clk 0:00:04]} 44. Ke4 {[%clk 0:00:03]}  Kg6 {[%clk 0:00:02]} 45. Ng3 {[%clk 0:00:03]}  Rh8 {[%clk 0:00:01]} 46. Kf4 {[%clk 0:00:03]}  Re8 {[%clk 0:00:02]} 47. Ne4 {[%clk 0:00:03]}  Re7 {[%clk 0:00:02]} 48. a4 {[%clk 0:00:03]}  Re6 {[%clk 0:00:01]} 49. a5 {[%clk 0:00:04]}  Re7 {[%clk 0:00:02]} 50. c3 {[%clk 0:00:04]}  Re8 {[%clk 0:00:02]} 51. Nf6 {[%clk 0:00:04]}  Re6 {[%clk 0:00:01]} 52. Nxg4 {[%clk 0:00:05]}  Re8 {[%clk 0:00:02]} 53. Ne3 {[%clk 0:00:05]}  Rd8 {[%clk 0:00:03]} 54. Ke4 {[%clk 0:00:06]}  Kf7 {[%clk 0:00:03]} 55. Nf5 {[%clk 0:00:06]}  Ke6 {[%clk 0:00:03]} 56. Nd4+ {[%clk 0:00:07]}  Kd7 {[%clk 0:00:04]} 57. e6+ {[%clk 0:00:07]}  Kd6 {[%clk 0:00:05]} 58. c5+ {[%clk 0:00:08]}  Ke7 {[%clk 0:00:04]} 59. Nxc6+ {[%clk 0:00:09]} 1-0

[Event "November 21 Early 2023"]
[Site "https://www.chess.com"]
[Date "2023.11.21"]
[Round "5"]
[White "Carlsen, Magnus"]
[Black "Bharath Subramaniyam H"]
[Result "1-0"]
[Board "2"]
[TimeControl "180+1"]
[WhiteFideId "1503014"]
[BlackFideId "46634827"]
[WhiteElo "2887"]
[BlackElo "2435"]
[WhiteTeam "NOR"]
[BlackTeam "IND"]
[WhiteClock "0:01:25"]
[BlackClock "0:00:02"]

1. e3 {[%clk 0:02:58]}  d5 {[%clk 0:02:59]} 2. c4 {[%clk 0:02:56]}  c6 {[%clk 0:02:59]} 3. Nf3 {[%clk 0:02:56]}  Nf6 {[%clk 0:02:59]} 4. Nc3 {[%clk 0:02:53]}  e6 {[%clk 0:03:00]} 5. b3 {[%clk 0:02:54]}  Bd6 {[%clk 0:02:59]} 6. d4 {[%clk 0:02:53]}  Nbd7 {[%clk 0:02:58]} 7. Bb2 {[%clk 0:02:52]}  O-O {[%clk 0:02:53]} 8. Bd3 {[%clk 0:02:51]}  b6 {[%clk 0:02:27]} 9. O-O {[%clk 0:02:50]}  Bb7 {[%clk 0:02:26]} 10. Qe2 {[%clk 0:02:43]}  Qe7 {[%clk 0:02:23]} 11. cxd5 {[%clk 0:02:37]}  exd5 {[%clk 0:02:18]} 12. Ba6 {[%clk 0:02:37]}  Bxa6 {[%clk 0:02:13]} 13. Qxa6 {[%clk 0:02:37]}  Ne4 {[%clk 0:02:11]} 14. Rac1 {[%clk 0:02:37]}  Ndf6 {[%clk 0:02:04]} 15. Nxe4 {[%clk 0:02:35]}  dxe4 {[%clk 0:02:04]} 16. Ne5 {[%clk 0:02:35]}  c5 {[%clk 0:02:02]} 17. h3 {[%clk 0:02:32]}  Nd5 {[%clk 0:01:52]} 18. Qc4 {[%clk 0:02:28]}  Qe6 {[%clk 0:01:37]} 19. Rfd1 {[%clk 0:02:25]}  Bxe5 {[%clk 0:01:20]} 20. dxe5 {[%clk 0:02:25]}  Nb4 {[%clk 0:01:20]} 21. Qxe4 {[%clk 0:02:19]}  Nxa2 {[%clk 0:01:20]} 22. Rc4 {[%clk 0:02:11]}  Rad8 {[%clk 0:01:15]} 23. Rxd8 {[%clk 0:02:11]}  Rxd8 {[%clk 0:01:16]} 24. Ra4 {[%clk 0:02:12]}  Qxb3 {[%clk 0:01:12]} 25. e6 {[%clk 0:02:12]}  Qxb2 {[%clk 0:00:36]} 26. e7 {[%clk 0:02:04]}  Re8 {[%clk 0:00:32]} 27. Rxa7 {[%clk 0:02:04]}  Qb5 {[%clk 0:00:18]} 28. Rxa2 {[%clk 0:01:57]}  Qd7 {[%clk 0:00:18]} 29. Ra8 {[%clk 0:01:57]}  g6 {[%clk 0:00:14]} 30. Rxe8+ {[%clk 0:01:55]}  Qxe8 {[%clk 0:00:15]} 31. Qe5 {[%clk 0:01:55]}  c4 {[%clk 0:00:15]} 32. Qd6 {[%clk 0:01:54]}  f5 {[%clk 0:00:15]} 33. Qd5+ {[%clk 0:01:31]}  Kg7 {[%clk 0:00:16]} 34. Qd4+ {[%clk 0:01:32]}  Kh6 {[%clk 0:00:10]} 35. Qf6 {[%clk 0:01:28]}  Kh5 {[%clk 0:00:05]} 36. Qf8 {[%clk 0:01:26]}  Qc6 {[%clk 0:00:03]} 37. e8=Q {[%clk 0:01:25]}  c3 {[%clk 0:00:02]} 38. Qxc6 {[%clk 0:01:25]} 1-0

[Event "November 21 Early 2023"]
[Site "https://www.chess.com"]
[Date "2023.11.21"]
[Round "5"]
[White "Ashraf, Artin"]
[Black "Andreikin, Dmitry"]
[Result "0-1"]
[Board "4"]
[TimeControl "180+1"]
[WhiteFideId "22514805"]
[BlackFideId "4158814"]
[WhiteElo "2235"]
[BlackElo "2741"]
[WhiteTeam "IRI"]
[BlackTeam "FID"]
[WhiteClock "0:00:38"]
[BlackClock "0:01:30"]

1. c4 {[%clk 0:02:59]}  e6 {[%clk 0:02:59]} 2. Nf3 {[%clk 0:02:52]}  d5 {[%clk 0:03:00]} 3. e3 {[%clk 0:02:49]}  Nf6 {[%clk 0:02:59]} 4. b3 {[%clk 0:02:48]}  c5 {[%clk 0:02:58]} 5. Bb2 {[%clk 0:02:48]}  Nc6 {[%clk 0:02:59]} 6. cxd5 {[%clk 0:02:46]}  exd5 {[%clk 0:03:00]} 7. Bb5 {[%clk 0:02:40]}  Bd6 {[%clk 0:02:59]} 8. Bxc6+ {[%clk 0:02:38]}  bxc6 {[%clk 0:02:59]} 9. h3 {[%clk 0:02:37]}  Ba6 {[%clk 0:02:36]} 10. d3 {[%clk 0:02:36]}  c4 {[%clk 0:02:35]} 11. dxc4 {[%clk 0:01:42]}  dxc4 {[%clk 0:02:35]} 12. Nbd2 {[%clk 0:01:42]}  cxb3 {[%clk 0:02:02]} 13. axb3 {[%clk 0:01:34]}  Bd3 {[%clk 0:02:01]} 14. Bc3 {[%clk 0:01:23]}  Nd5 {[%clk 0:01:54]} 15. Ba5 {[%clk 0:01:10]}  Nxe3 {[%clk 0:01:47]} 16. Qe2 {[%clk 0:00:47]}  Bxe2 {[%clk 0:01:35]} 17. Bxd8 {[%clk 0:00:46]}  Bxf3 {[%clk 0:01:31]} 18. Nxf3 {[%clk 0:00:38]}  Nc2+ {[%clk 0:01:30]} 0-1

[Event "November 21 Early 2023"]
[Site "https://www.chess.com"]
[Date "2023.11.21"]
[Round "5"]
[White "Sadhwani, Raunak"]
[Black "Shimanov, Aleksandr"]
[Result "1-0"]
[Board "5"]
[TimeControl "180+1"]
[WhiteFideId "35093487"]
[BlackFideId "4198603"]
[WhiteElo "2668"]
[BlackElo "2611"]
[WhiteTeam "IND"]
[BlackTeam "RUS"]
[WhiteClock "0:00:09"]
[BlackClock "0:00:00"]

1. c4 {[%clk 0:02:56]}  e5 {[%clk 0:02:58]} 2. Nc3 {[%clk 0:02:56]}  Bb4 {[%clk 0:02:55]} 3. Qc2 {[%clk 0:02:43]}  Nf6 {[%clk 0:02:53]} 4. g3 {[%clk 0:02:32]}  O-O {[%clk 0:02:52]} 5. Bg2 {[%clk 0:02:30]}  c6 {[%clk 0:02:51]} 6. e4 {[%clk 0:02:28]}  b5 {[%clk 0:02:36]} 7. cxb5 {[%clk 0:02:22]}  cxb5 {[%clk 0:02:36]} 8. Nf3 {[%clk 0:02:20]}  Nc6 {[%clk 0:02:35]} 9. O-O {[%clk 0:02:18]}  Ba6 {[%clk 0:02:18]} 10. Nd5 {[%clk 0:02:17]}  Be7 {[%clk 0:02:16]} 11. Nxe7+ {[%clk 0:02:08]}  Qxe7 {[%clk 0:02:15]} 12. d3 {[%clk 0:02:05]}  Rac8 {[%clk 0:02:14]} 13. Qe2 {[%clk 0:02:04]}  b4 {[%clk 0:02:14]} 14. a3 {[%clk 0:01:58]}  Rfd8 {[%clk 0:02:05]} 15. axb4 {[%clk 0:01:53]}  Nxb4 {[%clk 0:02:02]} 16. Bd2 {[%clk 0:01:44]}  Bb5 {[%clk 0:01:01]} 17. Bxb4 {[%clk 0:01:41]}  Qxb4 {[%clk 0:01:02]} 18. Nxe5 {[%clk 0:01:28]}  a5 {[%clk 0:00:53]} 19. Rfc1 {[%clk 0:01:18]}  a4 {[%clk 0:00:44]} 20. Nc4 {[%clk 0:01:06]}  d5 {[%clk 0:00:35]} 21. exd5 {[%clk 0:01:06]}  Nxd5 {[%clk 0:00:36]} 22. Na3 {[%clk 0:00:53]}  Rxc1+ {[%clk 0:00:28]} 23. Rxc1 {[%clk 0:00:54]}  Nf6 {[%clk 0:00:19]} 24. Nxb5 {[%clk 0:00:51]}  Qxb5 {[%clk 0:00:20]} 25. Rc4 {[%clk 0:00:49]}  h6 {[%clk 0:00:19]} 26. Bc6 {[%clk 0:00:48]}  Qf5 {[%clk 0:00:13]} 27. Bxa4 {[%clk 0:00:38]}  g5 {[%clk 0:00:09]} 28. Bc6 {[%clk 0:00:36]}  Qxd3 {[%clk 0:00:06]} 29. Qxd3 {[%clk 0:00:36]}  Rxd3 {[%clk 0:00:07]} 30. b4 {[%clk 0:00:36]}  Rb3 {[%clk 0:00:07]} 31. b5 {[%clk 0:00:36]}  Kg7 {[%clk 0:00:06]} 32. h3 {[%clk 0:00:33]}  h5 {[%clk 0:00:06]} 33. Rd4 {[%clk 0:00:28]}  Kg6 {[%clk 0:00:06]} 34. Kf1 {[%clk 0:00:28]}  Rb2 {[%clk 0:00:05]} 35. Ke1 {[%clk 0:00:28]}  Kf5 {[%clk 0:00:05]} 36. Rd2 {[%clk 0:00:25]}  Rb3 {[%clk 0:00:04]} 37. Kd1 {[%clk 0:00:24]}  h4 {[%clk 0:00:04]} 38. Kc2 {[%clk 0:00:23]}  Rb4 {[%clk 0:00:04]} 39. Kc3 {[%clk 0:00:23]}  Rb1 {[%clk 0:00:03]} 40. gxh4 {[%clk 0:00:19]}  gxh4 {[%clk 0:00:03]} 41. Rd4 {[%clk 0:00:20]}  Rf1 {[%clk 0:00:01]} 42. Rxh4 {[%clk 0:00:17]}  Ke5 {[%clk 0:00:01]} 43. Kb4 {[%clk 0:00:09]}  Kd6 {[%clk 0:00:00]} 44. Rf4 {[%clk 0:00:09]} 1-0

[Event "November 21 Early 2023"]
[Site "https://www.chess.com"]
[Date "2023.11.21"]
[Round "5"]
[White "Bortnyk, Olexandr"]
[Black "Kuzubov, Yuriy"]
[Result "1/2-1/2"]
[Board "6"]
[TimeControl "180+1"]
[WhiteFideId "14120828"]
[BlackFideId "14112906"]
[WhiteElo "2725"]
[BlackElo "2487"]
[WhiteTeam "UKR"]
[BlackTeam "UKR"]
[WhiteClock "0:00:14"]
[BlackClock "0:00:05"]

1. d4 {[%clk 0:02:49]}  Nf6 {[%clk 0:02:59]} 2. Nc3 {[%clk 0:02:50]}  d5 {[%clk 0:02:56]} 3. Bf4 {[%clk 0:02:51]}  e6 {[%clk 0:02:52]} 4. Nb5 {[%clk 0:02:50]}  Bb4+ {[%clk 0:02:49]} 5. c3 {[%clk 0:02:51]}  Ba5 {[%clk 0:02:49]} 6. a4 {[%clk 0:02:51]}  a6 {[%clk 0:02:44]} 7. b4 {[%clk 0:02:51]}  axb5 {[%clk 0:02:33]} 8. axb5 {[%clk 0:02:50]}  Bd7 {[%clk 0:02:24]} 9. e3 {[%clk 0:02:47]}  Bxb4 {[%clk 0:02:08]} 10. Rxa8 {[%clk 0:02:46]}  Bxc3+ {[%clk 0:02:08]} 11. Ke2 {[%clk 0:02:47]}  Bxb5+ {[%clk 0:01:30]} 12. Kf3 {[%clk 0:02:47]}  Bxf1 {[%clk 0:01:29]} 13. Qxf1 {[%clk 0:02:46]}  O-O {[%clk 0:01:28]} 14. Qb5 {[%clk 0:02:41]}  Ne4 {[%clk 0:01:22]} 15. Qxb7 {[%clk 0:02:19]}  e5 {[%clk 0:01:02]} 16. Bxe5 {[%clk 0:02:02]}  h5 {[%clk 0:00:34]} 17. Qxc7 {[%clk 0:01:31]}  Qg5 {[%clk 0:00:20]} 18. g3 {[%clk 0:01:10]}  Qf5+ {[%clk 0:00:17]} 19. Bf4 {[%clk 0:01:10]}  Ng5+ {[%clk 0:00:16]} 20. Ke2 {[%clk 0:00:31]}  Qc2+ {[%clk 0:00:15]} 21. Kf1 {[%clk 0:00:32]}  Qb1+ {[%clk 0:00:04]} 22. Kg2 {[%clk 0:00:31]}  Qe4+ {[%clk 0:00:04]} 23. Kf1 {[%clk 0:00:18]}  Qb1+ {[%clk 0:00:04]} 24. Kg2 {[%clk 0:00:18]}  Qe4+ {[%clk 0:00:04]} 25. f3 {[%clk 0:00:19]}  Qc2+ {[%clk 0:00:04]} 26. Kf1 {[%clk 0:00:20]}  Qd1+ {[%clk 0:00:04]} 27. Kf2 {[%clk 0:00:12]}  Qe1+ {[%clk 0:00:04]} 28. Kg2 {[%clk 0:00:12]}  Qd2+ {[%clk 0:00:05]} 29. Kf1 {[%clk 0:00:13]}  Qd1+ {[%clk 0:00:05]} 30. Kf2 {[%clk 0:00:13]}  Qe1+ {[%clk 0:00:05]} 31. Kg2 {[%clk 0:00:14]}  Qd2+ {[%clk 0:00:05]} 32. Kf1 {[%clk 0:00:14]}  Qd1+ {[%clk 0:00:05]} 1/2-1/2

[Event "November 21 Early 2023"]
[Site "https://www.chess.com"]
[Date "2023.11.21"]
[Round "5"]
[White "Alexandre, Anne Shopie Elizabeth"]
[Black "Daneshvar, Bardiya"]
[Result "1-0"]
[Board "8"]
[TimeControl "180+1"]
[WhiteFideId "11902418"]
[BlackFideId "12576468"]
[WhiteElo "2811"]
[BlackElo "2483"]
[WhiteTeam "HAI"]
[BlackTeam "IRI"]
[WhiteClock "0:00:38"]
[BlackClock "0:00:00"]

1. c4 {[%clk 0:03:00]}  c5 {[%clk 0:02:58]} 2. Nf3 {[%clk 0:03:00]}  g6 {[%clk 0:02:59]} 3. g3 {[%clk 0:02:58]}  Bg7 {[%clk 0:02:59]} 4. Bg2 {[%clk 0:02:59]}  Nc6 {[%clk 0:03:00]} 5. Nc3 {[%clk 0:02:58]}  Nf6 {[%clk 0:02:59]} 6. d4 {[%clk 0:02:55]}  cxd4 {[%clk 0:02:56]} 7. Nxd4 {[%clk 0:02:56]}  O-O {[%clk 0:02:56]} 8. O-O {[%clk 0:02:55]}  Qa5 {[%clk 0:02:57]} 9. Nb3 {[%clk 0:02:50]}  Qh5 {[%clk 0:02:57]} 10. e4 {[%clk 0:02:44]}  Ng4 {[%clk 0:02:28]} 11. h3 {[%clk 0:02:39]}  Nge5 {[%clk 0:02:27]} 12. Qxh5 {[%clk 0:02:37]}  gxh5 {[%clk 0:02:28]} 13. c5 {[%clk 0:02:31]}  Nd3 {[%clk 0:02:24]} 14. Rd1 {[%clk 0:02:29]}  Nxc1 {[%clk 0:02:16]} 15. Raxc1 {[%clk 0:02:30]}  h4 {[%clk 0:02:16]} 16. g4 {[%clk 0:02:23]}  b6 {[%clk 0:02:09]} 17. cxb6 {[%clk 0:02:18]}  axb6 {[%clk 0:02:08]} 18. a3 {[%clk 0:02:18]}  Bh6 {[%clk 0:01:54]} 19. Rb1 {[%clk 0:02:16]}  Rb8 {[%clk 0:01:50]} 20. Nd4 {[%clk 0:02:14]}  Nxd4 {[%clk 0:01:42]} 21. Rxd4 {[%clk 0:02:14]}  d6 {[%clk 0:01:40]} 22. Rc4 {[%clk 0:02:12]}  Be6 {[%clk 0:01:34]} 23. Rc7 {[%clk 0:02:12]}  Bg5 {[%clk 0:01:33]} 24. Nd5 {[%clk 0:02:08]}  Rfe8 {[%clk 0:01:19]} 25. b4 {[%clk 0:02:04]}  b5 {[%clk 0:01:12]} 26. Rb3 {[%clk 0:01:55]}  Rec8 {[%clk 0:01:03]} 27. Rbc3 {[%clk 0:01:44]}  Rxc7 {[%clk 0:01:02]} 28. Rxc7 {[%clk 0:01:41]}  Kf8 {[%clk 0:00:36]} 29. Bf1 {[%clk 0:01:38]}  Bxd5 {[%clk 0:00:31]} 30. exd5 {[%clk 0:01:38]}  Bf6 {[%clk 0:00:31]} 31. Ra7 {[%clk 0:01:35]}  Rc8 {[%clk 0:00:23]} 32. Bxb5 {[%clk 0:01:33]}  Bd4 {[%clk 0:00:20]} 33. Rb7 {[%clk 0:01:16]}  Rc2 {[%clk 0:00:18]} 34. a4 {[%clk 0:01:16]}  Rxf2 {[%clk 0:00:17]} 35. Bc6 {[%clk 0:00:59]}  Rf3+ {[%clk 0:00:08]} 36. Kg2 {[%clk 0:01:00]}  Rg3+ {[%clk 0:00:08]} 37. Kh2 {[%clk 0:01:00]}  Be5 {[%clk 0:00:09]} 38. a5 {[%clk 0:00:56]}  Rxg4+ {[%clk 0:00:03]} 39. Kh1 {[%clk 0:00:56]}  Rg3 {[%clk 0:00:04]} 40. a6 {[%clk 0:00:55]}  Rxh3+ {[%clk 0:00:04]} 41. Kg2 {[%clk 0:00:55]}  Rh2+ {[%clk 0:00:03]} 42. Kf3 {[%clk 0:00:54]}  Ra2 {[%clk 0:00:03]} 43. a7 {[%clk 0:00:52]}  Kg7 {[%clk 0:00:02]} 44. Rxe7 {[%clk 0:00:49]}  Ra3+ {[%clk 0:00:01]} 45. Kg4 {[%clk 0:00:43]}  h3 {[%clk 0:00:02]} 46. Rxe5 {[%clk 0:00:37]}  dxe5 {[%clk 0:00:01]} 47. a8=Q {[%clk 0:00:37]}  Rxa8 {[%clk 0:00:01]} 48. Bxa8 {[%clk 0:00:38]}  h2 {[%clk 0:00:00]} 49. d6 {[%clk 0:00:38]} 1-0

[Event "November 21 Early 2023"]
[Site "https://www.chess.com"]
[Date "2023.11.21"]
[Round "5"]
[White "Matinian, Nikita"]
[Black "Liang, Awonder"]
[Result "0-1"]
[Board "9"]
[TimeControl "180+1"]
[WhiteFideId "24129100"]
[BlackFideId "2056437"]
[WhiteElo "2417"]
[BlackElo "2527"]
[WhiteTeam "FID"]
[BlackTeam "USA"]
[WhiteClock "0:00:01"]
[BlackClock "0:00:51"]

1. e4 {[%clk 0:00:55]}  b6 {[%clk 0:03:00]} 2. d4 {[%clk 0:00:55]}  Bb7 {[%clk 0:03:00]} 3. Bd3 {[%clk 0:00:55]}  e6 {[%clk 0:03:00]} 4. Nf3 {[%clk 0:00:55]}  d6 {[%clk 0:03:01]} 5. O-O {[%clk 0:00:55]}  Nd7 {[%clk 0:03:02]} 6. c3 {[%clk 0:00:54]}  g6 {[%clk 0:03:02]} 7. Bg5 {[%clk 0:00:53]}  Ne7 {[%clk 0:03:02]} 8. Qd2 {[%clk 0:00:52]}  h6 {[%clk 0:03:02]} 9. Be3 {[%clk 0:00:51]}  Bg7 {[%clk 0:03:02]} 10. a4 {[%clk 0:00:49]}  a6 {[%clk 0:03:03]} 11. Na3 {[%clk 0:00:49]}  g5 {[%clk 0:03:03]} 12. b4 {[%clk 0:00:47]}  Ng6 {[%clk 0:03:03]} 13. h3 {[%clk 0:00:46]}  Nf6 {[%clk 0:03:02]} 14. e5 {[%clk 0:00:39]}  dxe5 {[%clk 0:02:33]} 15. Bxg6 {[%clk 0:00:38]}  Bxf3 {[%clk 0:02:30]} 16. Bd3 {[%clk 0:00:36]}  e4 {[%clk 0:02:21]} 17. Bc2 {[%clk 0:00:32]}  Bh5 {[%clk 0:02:21]} 18. Nc4 {[%clk 0:00:28]}  O-O {[%clk 0:02:16]} 19. Ne5 {[%clk 0:00:28]}  Qd5 {[%clk 0:02:07]} 20. g4 {[%clk 0:00:28]}  Bg6 {[%clk 0:02:07]} 21. Nxg6 {[%clk 0:00:28]}  fxg6 {[%clk 0:02:08]} 22. Rab1 {[%clk 0:00:28]}  Kh8 {[%clk 0:02:06]} 23. Rfe1 {[%clk 0:00:18]}  Rad8 {[%clk 0:02:03]} 24. Qe2 {[%clk 0:00:16]}  b5 {[%clk 0:02:01]} 25. axb5 {[%clk 0:00:16]}  axb5 {[%clk 0:02:02]} 26. Ra1 {[%clk 0:00:15]}  Qc6 {[%clk 0:01:53]} 27. Bd2 {[%clk 0:00:13]}  Qd6 {[%clk 0:01:44]} 28. Bxe4 {[%clk 0:00:12]}  e5 {[%clk 0:01:13]} 29. Bxg6 {[%clk 0:00:07]}  exd4 {[%clk 0:01:13]} 30. cxd4 {[%clk 0:00:08]}  Nxg4 {[%clk 0:01:14]} 31. hxg4 {[%clk 0:00:06]}  Qxg6 {[%clk 0:01:15]} 32. Be3 {[%clk 0:00:04]}  Qe4 {[%clk 0:01:11]} 33. Rac1 {[%clk 0:00:03]}  c6 {[%clk 0:01:08]} 34. Qc2 {[%clk 0:00:02]}  Qxg4+ {[%clk 0:01:08]} 35. Kf1 {[%clk 0:00:03]}  Qh3+ {[%clk 0:01:06]} 36. Ke2 {[%clk 0:00:03]}  Qf3+ {[%clk 0:01:05]} 37. Kf1 {[%clk 0:00:03]}  Rde8 {[%clk 0:01:03]} 38. Qxc6 {[%clk 0:00:03]}  Qh3+ {[%clk 0:01:01]} 39. Qg2 {[%clk 0:00:02]}  Rxe3 {[%clk 0:01:00]} 40. Qxh3 {[%clk 0:00:01]}  Rxh3 {[%clk 0:01:01]} 41. Rc7 {[%clk 0:00:02]}  Rhf3 {[%clk 0:01:01]} 42. Ree7 {[%clk 0:00:01]}  Bxd4 {[%clk 0:00:56]} 43. Rh7+ {[%clk 0:00:01]}  Kg8 {[%clk 0:00:57]} 44. Rxh6 {[%clk 0:00:02]}  Rxf2+ {[%clk 0:00:56]} 45. Ke1 {[%clk 0:00:02]}  R2f6 {[%clk 0:00:54]} 46. Rxf6 {[%clk 0:00:02]}  Rxf6 {[%clk 0:00:51]} 47. Rb7 {[%clk 0:00:03]}  Rf5 {[%clk 0:00:51]} 48. Ke2 {[%clk 0:00:03]}  Bc3 {[%clk 0:00:50]} 49. Kd3 {[%clk 0:00:03]}  Bxb4 {[%clk 0:00:50]} 50. Ke4 {[%clk 0:00:01]}  Rc5 {[%clk 0:00:51]} 0-1

[Event "November 21 Early 2023"]
[Site "https://www.chess.com"]
[Date "2023.11.21"]
[Round "5"]
[White "Nihal Sarin"]
[Black "Nagy, Gabor"]
[Result "1-0"]
[Board "10"]
[TimeControl "180+1"]
[WhiteFideId "25092340"]
[BlackFideId "737119"]
[WhiteElo "2689"]
[BlackElo "2505"]
[WhiteTeam "IND"]
[BlackTeam "HUN"]
[WhiteClock "0:00:56"]
[BlackClock "0:01:09"]

1. Nf3 {[%clk 0:03:00]}  c5 {[%clk 0:02:56]} 2. e3 {[%clk 0:02:57]}  Nc6 {[%clk 0:02:54]} 3. Bb5 {[%clk 0:02:56]}  Qc7 {[%clk 0:02:51]} 4. O-O {[%clk 0:02:54]}  a6 {[%clk 0:02:46]} 5. Bxc6 {[%clk 0:02:53]}  Qxc6 {[%clk 0:02:46]} 6. d4 {[%clk 0:02:54]}  cxd4 {[%clk 0:02:45]} 7. exd4 {[%clk 0:02:50]}  Nf6 {[%clk 0:02:40]} 8. Bg5 {[%clk 0:02:37]}  Ne4 {[%clk 0:02:28]} 9. d5 {[%clk 0:02:33]}  Qg6 {[%clk 0:02:18]} 10. Bh4 {[%clk 0:02:23]}  d6 {[%clk 0:02:16]} 11. Re1 {[%clk 0:02:18]}  Bg4 {[%clk 0:02:11]} 12. Nc3 {[%clk 0:02:05]}  Nxc3 {[%clk 0:02:09]} 13. bxc3 {[%clk 0:02:06]}  Qh5 {[%clk 0:02:01]} 14. Bg3 {[%clk 0:01:54]}  Bxf3 {[%clk 0:01:55]} 15. gxf3 {[%clk 0:01:54]}  Rd8 {[%clk 0:01:46]} 16. Rb1 {[%clk 0:01:51]}  Rd7 {[%clk 0:01:39]} 17. c4 {[%clk 0:01:44]}  g5 {[%clk 0:01:35]} 18. Qd4 {[%clk 0:01:43]}  Rg8 {[%clk 0:01:30]} 19. c5 {[%clk 0:01:18]}  dxc5 {[%clk 0:01:21]} 20. Qxc5 {[%clk 0:01:18]}  f5 {[%clk 0:01:20]} 21. Qc8+ {[%clk 0:00:56]}  Rd8 {[%clk 0:01:09]} 22. Qxf5 {[%clk 0:00:56]} 1-0

[Event "November 21 Early 2023"]
[Site "https://www.chess.com"]
[Date "2023.11.21"]
[Round "5"]
[White "Nguyen, Ngoc Truong Son"]
[Black "Klukin, Kirill"]
[Result "1-0"]
[Board "12"]
[TimeControl "180+1"]
[WhiteFideId "12401110"]
[BlackFideId "24199273"]
[WhiteElo "2556"]
[BlackElo "2344"]
[WhiteTeam "VIE"]
[BlackTeam "RUS"]
[WhiteClock "0:00:25"]
[BlackClock "0:00:00"]

1. e4 {[%clk 0:03:00]}  c5 {[%clk 0:02:59]} 2. Nf3 {[%clk 0:03:00]}  g6 {[%clk 0:02:59]} 3. d4 {[%clk 0:02:56]}  cxd4 {[%clk 0:03:00]} 4. Qxd4 {[%clk 0:02:56]}  Nf6 {[%clk 0:03:00]} 5. Bb5 {[%clk 0:02:35]}  a6 {[%clk 0:02:51]} 6. e5 {[%clk 0:02:25]}  axb5 {[%clk 0:02:50]} 7. exf6 {[%clk 0:02:24]}  Nc6 {[%clk 0:02:51]} 8. fxe7 {[%clk 0:02:19]}  Qxe7+ {[%clk 0:02:49]} 9. Qe3 {[%clk 0:02:19]}  Qxe3+ {[%clk 0:02:23]} 10. Bxe3 {[%clk 0:02:20]}  Bg7 {[%clk 0:02:24]} 11. c3 {[%clk 0:02:08]}  b4 {[%clk 0:02:23]} 12. Bc5 {[%clk 0:02:03]}  d6 {[%clk 0:01:46]} 13. Bxd6 {[%clk 0:01:58]}  Bg4 {[%clk 0:01:47]} 14. O-O {[%clk 0:01:55]}  O-O-O {[%clk 0:01:45]} 15. Bf4 {[%clk 0:01:50]}  Bxf3 {[%clk 0:01:42]} 16. gxf3 {[%clk 0:01:50]}  Rd3 {[%clk 0:01:43]} 17. Rc1 {[%clk 0:01:45]}  Rxf3 {[%clk 0:01:39]} 18. Be3 {[%clk 0:01:44]}  Rd8 {[%clk 0:01:36]} 19. a4 {[%clk 0:01:31]}  Rf5 {[%clk 0:01:24]} 20. a5 {[%clk 0:01:29]}  bxc3 {[%clk 0:00:46]} 21. Nxc3 {[%clk 0:01:30]}  Kd7 {[%clk 0:00:21]} 22. a6 {[%clk 0:01:20]}  bxa6 {[%clk 0:00:21]} 23. Rxa6 {[%clk 0:01:21]}  Ne5 {[%clk 0:00:22]} 24. Ne4 {[%clk 0:01:16]}  Ke8 {[%clk 0:00:20]} 25. Nd6+ {[%clk 0:01:16]}  Rxd6 {[%clk 0:00:18]} 26. Rxd6 {[%clk 0:01:17]}  Ng4 {[%clk 0:00:13]} 27. b4 {[%clk 0:00:56]}  Be5 {[%clk 0:00:07]} 28. Ra6 {[%clk 0:00:30]}  Bxh2+ {[%clk 0:00:06]} 29. Kg2 {[%clk 0:00:30]}  Be5 {[%clk 0:00:02]} 30. Bc5 {[%clk 0:00:27]}  h5 {[%clk 0:00:01]} 31. Rd1 {[%clk 0:00:25]}  Bf6 {[%clk 0:00:00]} 32. Ra8+ {[%clk 0:00:25]} 1-0